fUST/lending_fUST_20250305
["ID","MTS","AMOUNT","RATE_DAILY","PERIOD"]
[355398883,1741105682163,-511.44402167,0.00041917,120]
[355398884,1741105682192,-1222.73,0.00041917,120]
[355398885,1741105682222,-2060.71,0.00041917,120]
[355398886,1741105682249,-647.8,0.00041917,120]
[355398887,1741105682278,-1020.35,0.00041917,120]
[355398888,1741105682307,-1650.6,0.00041917,120]
[355398889,1741105682334,-500.0,0.00041917,120]
[355398890,1741105682362,-500.0,0.00041917,120]
[355398891,1741105682392,-989.67,0.00041917,120]
[355398892,1741105682424,-3649.54,0.00041917,120]
[355398893,1741105682455,-567.4,0.00041917,120]
[355398894,1741105682488,-500.0,0.00041917,120]
[355398895,1741105682518,-500.0,0.00041917,120]
[355398896,1741105682551,-500.0,0.00041917,120]
[355398897,1741105682585,-512.87253309,0.00041917,120]
[355398898,1741105682617,-500.0,0.00041917,120]
[355398899,1741105682647,-533.49,0.00041917,120]
[355398900,1741105682676,-717.4,0.00041917,120]
[355398901,1741105682703,-768.96,0.00041917,120]
[355398902,1741105682732,-530.64,0.00041917,120]
[355398903,1741105682760,-500.0,0.00041917,120]
[355398904,1741105682796,-500.0,0.00041917,120]
[355398905,1741105682825,-500.0,0.00041917,120]
[355398906,1741105682856,-606.2,0.00041917,120]
[355398907,1741105682887,-500.0,0.00041917,120]
[355398908,1741105682919,-500.0,0.00041917,120]
[355398909,1741105682955,-1910.99,0.00041917,30]
[355398910,1741105682995,-500.0,0.00041917,120]
[355398911,1741105683039,-365.22,0.00041917,120]
[355398912,1741105683086,-4600.61,0.00041917,120]
[355398913,1741105683125,-500.0,0.00041917,120]
[355398914,1741105683168,-500.0,0.00041917,120]
[355398915,1741105683208,-500.0,0.00041917,120]
[355398916,1741105683247,-500.0,0.00041917,120]
[355398917,1741105683292,-500.0,0.00041917,120]
[355398918,1741105683333,-500.0,0.00041917,120]
[355398919,1741105683372,-699.41,0.00041917,120]
[355398920,1741105683408,-2239.84,0.00041917,120]
[355398921,1741105683444,-306.79,0.00042,30]
[355398922,1741105683479,-171.844965,0.00042,120]
[355398923,1741105683516,-171.844965,0.00042,120]
[355398924,1741105683555,-3000.0,0.00042026,60]
[355398925,1741105683592,-161.63,0.000421,30]
[355398926,1741105683625,-7492.84,0.000421,30]
[355398927,1741105683660,-2403.82,0.000421,30]
[355398928,1741105683696,-150.0,0.00042124,30]
[355398929,1741105683730,-9742.11,0.0004216,120]
[355398930,1741105683767,-500.0,0.00042191,120]
[355398931,1741105683809,-754.98,0.00042191,120]
[355398932,1741105683846,-1000.0,0.00042191,120]
[355398933,1741105683882,-500.0,0.00042191,120]
[355398934,1741105683917,-736.91,0.00042191,120]
[355398935,1741105683954,-507.11,0.00042191,120]
[355398936,1741105683991,-300.50897871,0.00042191,120]
[355398937,1741105684035,-500.0,0.00042191,120]
[355398938,1741105684078,-500.16,0.00042191,120]
[355398939,1741105684116,-500.0,0.00042191,120]
[355398940,1741105684155,-500.0,0.00042191,120]
[355398941,1741105684190,-500.0,0.00042191,120]
[355398942,1741105684225,-500.0,0.00042191,120]
[355398943,1741105684258,-500.0,0.00042191,120]
[355398944,1741105684292,-521.22,0.00042191,120]
[355398945,1741105684327,-696.57,0.00042191,120]
[355398946,1741105684362,-500.0,0.00042191,120]
[355398947,1741105684399,-591.05,0.00042191,120]
[355398948,1741105684433,-500.0,0.00042191,120]
[355398949,1741105684471,-1338.5,0.00042191,120]
[355398950,1741105684504,-500.0,0.00042191,120]
[355398951,1741105684547,-500.0,0.00042191,120]
[355398952,1741105684585,-765.49,0.00042191,120]
[355398953,1741105684619,-1238.99,0.00042191,120]
[355398954,1741105684654,-500.0,0.00042191,120]
[355398955,1741105684688,-500.0,0.00042191,120]
[355398956,1741105684721,-500.0,0.00042191,120]
[355398957,1741105684753,-500.0,0.00042191,120]
[355398958,1741105684789,-500.0,0.00042191,120]
[355398959,1741105684820,-1222.73,0.00042191,120]
[355398960,1741105684852,-2060.71,0.00042191,120]
[355398961,1741105684885,-647.8,0.00042191,120]
[355398962,1741105684918,-1020.35,0.00042191,120]
[355398963,1741105685131,-1650.6,0.00042191,120]
[355398964,1741105685169,-500.0,0.00042191,120]
[355398965,1741105685199,-989.67,0.00042191,120]
[355398966,1741105685228,-3649.54,0.00042191,120]
[355398967,1741105685258,-567.4,0.00042191,120]
[355398968,1741105685290,-171.99,0.00042191,120]
[355398969,1741105685319,-500.0,0.00042191,120]
[355398970,1741105685348,-533.49,0.00042191,120]
[355398971,1741105685379,-717.4,0.00042191,120]
[355398972,1741105685408,-768.96,0.00042191,120]
[355398973,1741105685436,-530.64,0.00042191,120]
[355398974,1741105685464,-500.0,0.00042191,120]
[355398975,1741105685492,-500.0,0.00042191,120]
[355398976,1741105685519,-606.2,0.00042191,120]
[355398977,1741105685548,-500.0,0.00042191,120]
[355398978,1741105685575,-500.0,0.00042191,120]
[355398979,1741105685602,-1910.99,0.00042191,30]
[355398980,1741105685629,-4600.61,0.00042191,120]
[355398981,1741105685658,-500.0,0.00042191,120]
[355398982,1741105685685,-500.0,0.00042191,120]
[355398983,1741105685711,-500.0,0.00042191,120]
[355398984,1741105685740,-699.41,0.00042191,120]
[355398985,1741105685776,-2239.84,0.00042191,120]
[355398986,1741105685807,-355.0014711,0.00042274,30]
[355398987,1741105685834,-1000.0,0.00042383,30]
[355398988,1741105685862,-500.0,0.00042465,120]
[355398989,1741105685901,-754.98,0.00042465,120]
[355398990,1741105685933,-1000.0,0.00042465,120]
[355398991,1741105685961,-500.0,0.00042465,120]
[355398992,1741105685988,-736.91,0.00042465,120]
[355398993,1741105686017,-507.11,0.00042465,120]
[355398994,1741105686049,-500.0,0.00042465,120]
[355398995,1741105686077,-500.0,0.00042465,120]
[355398996,1741105686108,-500.0,0.00042465,120]
[355398997,1741105686137,-500.0,0.00042465,120]
[355398998,1741105686167,-500.0,0.00042465,120]
[355398999,1741105686194,-500.0,0.00042465,120]
[355399000,1741105686221,-521.22,0.00042465,120]
[355399001,1741105686247,-696.57,0.00042465,120]
[355399002,1741105686274,-500.0,0.00042465,120]
[355399003,1741105686305,-1338.5,0.00042465,120]
[355399004,1741105686332,-500.0,0.00042465,120]
[355399005,1741105686361,-765.49,0.00042465,120]
[355399006,1741105686389,-1238.99,0.00042465,120]
[355399007,1741105686417,-500.0,0.00042465,120]
[355399008,1741105686444,-500.0,0.00042465,120]
[355399009,1741105686472,-500.0,0.00042465,120]
[355399010,1741105686501,-500.0,0.00042465,120]
[355399011,1741105686529,-500.0,0.00042465,120]
[355399012,1741105686586,-152.552324,0.00042465,120]
[355399013,1741105686616,-1222.73,0.00042465,120]
[355399014,1741105686647,-2060.71,0.00042465,120]
[355399015,1741105686676,-647.8,0.00042465,120]
[355399016,1741105686706,-1020.35,0.00042465,120]
[355399017,1741105686735,-1650.6,0.00042465,120]
[355399018,1741105686763,-500.0,0.00042465,120]
[355399019,1741105686797,-989.67,0.00042465,120]
[355399020,1741105686825,-3649.54,0.00042465,120]
[355399021,1741105686855,-151.0,0.00042465,120]
[355399022,1741105686889,-567.4,0.00042465,120]
[355399023,1741105686922,-151.0,0.00042465,120]
[355399024,1741105686952,-500.0,0.00042465,120]
[355399025,1741105686981,-533.49,0.00042465,120]
[355399026,1741105687013,-717.4,0.00042465,120]
[355399027,1741105687061,-768.96,0.00042465,120]
[355399028,1741105687092,-530.64,0.00042465,120]
[355399029,1741105687122,-500.0,0.00042465,120]
[355399030,1741105687153,-500.0,0.00042465,120]
[355399031,1741105687182,-606.2,0.00042465,120]
[355399032,1741105687213,-500.0,0.00042465,120]
[355399033,1741105687243,-195.49,0.00042465,120]
[355399034,1741105687272,-1910.99,0.00042465,30]
[355399035,1741105687306,-4600.61,0.00042465,120]
[355399036,1741105687337,-500.0,0.00042465,120]
[355399037,1741105687368,-500.0,0.00042465,120]
[355399038,1741105687397,-500.0,0.00042465,120]
[355399039,1741105687428,-699.41,0.00042465,120]
[355399040,1741105687459,-2239.84,0.00042465,120]
[355399041,1741105687487,-151.0,0.0004249,120]
[355399042,1741105687515,-177.659283,0.0004249,120]
[355399043,1741105687551,-779.1860245,0.00042493,30]
[355399044,1741105687581,-3000.0,0.00042574,60]
[355399045,1741105687610,-525.05,0.000426,30]
[355399046,1741105687637,-237.960401,0.000426,120]
[355399047,1741105687665,-151.0,0.000427,120]
[355399048,1741105687692,-9742.11,0.00042708,120]
[355399049,1741105687720,-171.844965,0.00042739,120]
[355399050,1741105687749,-171.844965,0.00042739,120]
[355399051,1741105687782,-500.0,0.00042739,120]
[355399052,1741105687815,-754.98,0.00042739,120]
[355399053,1741105687846,-1000.0,0.00042739,120]
[355399054,1741105687878,-500.0,0.00042739,120]
[355399055,1741105687906,-736.91,0.00042739,120]
[355399056,1741105687937,-507.11,0.00042739,120]
[355399057,1741105687965,-151.0,0.00042739,120]
[355399058,1741105687995,-151.0,0.00042739,120]
[355399059,1741105688027,-456.735376,0.00042739,120]
[355399060,1741105688064,-456.735376,0.00042739,120]
[355399061,1741105688095,-500.0,0.00042739,120]
[355399062,1741105688125,-151.0,0.00042739,120]
[355399063,1741105688154,-500.0,0.00042739,120]
[355399064,1741105688307,-151.0,0.00042739,120]
[355399065,1741105688335,-190.682304,0.00042739,120]
[355399066,1741105688363,-500.0,0.00042739,120]
[355399067,1741105688391,-500.0,0.00042739,120]
[355399068,1741105688418,-500.0,0.00042739,120]
[355399069,1741105688445,-324.22155171,0.00042739,120]
[355399070,1741105688473,-521.22,0.00042739,120]
[355399071,1741105688500,-696.57,0.00042739,120]
[355399072,1741105688528,-500.0,0.00042739,120]
[355399073,1741105688562,-151.0,0.00042739,120]
[355399074,1741105688598,-151.0,0.00042739,120]
[355399075,1741105688625,-151.0,0.00042739,120]
[355399076,1741105688652,-1338.5,0.00042739,120]
[355399077,1741105688678,-500.0,0.00042739,120]
[355399078,1741105688706,-765.49,0.00042739,120]
[355399079,1741105688733,-1238.99,0.00042739,120]
[355399080,1741105688760,-500.0,0.00042739,120]
[355399081,1741105688789,-500.0,0.00042739,120]
[355399082,1741105688816,-500.0,0.00042739,120]
[355399083,1741105688842,-500.0,0.00042739,120]
[355399084,1741105688868,-500.0,0.00042739,120]
[355399085,1741105688895,-1222.73,0.00042739,120]
[355399086,1741105688923,-2060.71,0.00042739,120]
[355399087,1741105688950,-647.8,0.00042739,120]
[355399088,1741105688978,-1020.35,0.00042739,120]
[355399089,1741105689006,-151.0,0.00042739,120]
[355399090,1741105689042,-1650.6,0.00042739,120]
[355399091,1741105689070,-500.0,0.00042739,120]
[355399092,1741105689098,-989.67,0.00042739,120]
[355399093,1741105689129,-3649.54,0.00042739,120]
[355399094,1741105689159,-567.4,0.00042739,120]
[355399095,1741105689187,-151.0,0.00042739,120]
[355399096,1741105689217,-533.49,0.00042739,120]
[355399097,1741105689245,-500.0,0.00042739,120]
[355399098,1741105689274,-717.4,0.00042739,120]
[355399099,1741105689308,-768.96,0.00042739,120]
[355399100,1741105689338,-530.64,0.00042739,120]
[355399101,1741105689369,-500.0,0.00042739,120]
[355399102,1741105689398,-500.0,0.00042739,120]
[355399103,1741105689427,-606.2,0.00042739,120]
[355399104,1741105689455,-500.0,0.00042739,120]
[355399105,1741105689485,-1910.99,0.00042739,30]
[355399106,1741105689511,-4600.61,0.00042739,120]
[355399107,1741105689542,-183.74,0.00042739,120]
[355399108,1741105689571,-500.0,0.00042739,120]
[355399109,1741105689600,-500.0,0.00042739,120]
[355399110,1741105689630,-699.41,0.00042739,120]
[355399111,1741105689658,-2239.84,0.00042739,120]
[355399112,1741105689687,-500.0,0.00042756,30]
[355399113,1741105689714,-356.0733927,0.00042767,30]
[355399114,1741105689742,-356.0733927,0.00042767,30]
[355399115,1741105689769,-356.0733927,0.00042767,30]
[355399116,1741105689801,-7492.84,0.000428,30]
[355399117,1741105689831,-2403.82,0.000428,30]
[355399118,1741105689860,-1006.804361,0.000428,41]
[355399119,1741105689890,-500.0,0.00042825,30]
[355399120,1741105689919,-1136.64054549,0.00042896,85]
[355399121,1741105689947,-306.79,0.000429,30]
[355399122,1741105689979,-161.63,0.000429,30]
[355399123,1741105690010,-151.0,0.00042903,120]
[355399124,1741105690052,-152.278699,0.00042903,120]
[355399125,1741105690082,-151.0,0.00042903,120]
[355399126,1741105690114,-151.0,0.00042903,120]
[355399127,1741105690143,-195.758114,0.00042903,120]
[355399128,1741105690169,-195.758114,0.00042903,120]
[355399129,1741105690197,-151.0,0.00042903,120]
[355399130,1741105690226,-151.0,0.00042903,120]
[355399131,1741105690253,-151.0,0.00042903,120]
[355399132,1741105690281,-151.0,0.00042903,120]
[355399133,1741105690313,-151.0,0.00042903,120]
[355399134,1741105690343,-500.0,0.00042985,30]
[355399135,1741105690372,-150.11402454,0.00042986,120]
[355399136,1741105690401,-1136.64054549,0.00042996,88]
[355399137,1741105690430,-1000.0,0.00042998,120]
[355399138,1741105690460,-1000.0,0.00042999,120]
[355399139,1741105690490,-2000.0,0.00043,60]
[355399140,1741105690522,-138185.17422084,0.00043,90]
[355399141,1741105718100,338602.63934865,0.00047053,120]
[355399541,1741105806887,-32313.16356865,0.00047053,120]
[355399542,1741105806921,-1479.82903376,0.00047053,90]
[355399543,1741105806952,-1890.34079392,0.00047053,30]
[355399544,1741105815888,-561.92586196,0.0003,60]
[355399545,1741105815915,-1063.45776264,0.000325,30]
[355399546,1741105815953,-367.53,0.00034,30]
[355399547,1741105815982,-161.63,0.00034,30]
[355399548,1741105816011,-5244.99,0.00034,30]
[355399549,1741105816040,-1634.5,0.00034,30]
[355399550,1741105816070,-22008.39107105,0.00035,120]
[355399551,1741105816100,-13549.95719173,0.000362,98]
[355399552,1741105816136,-13549.95719169,0.000362,98]
[355399553,1741105816165,-5244.99,0.00037,30]
[355399554,1741105816194,-1634.5,0.00037,30]
[355399555,1741105816225,-13549.95719169,0.00037048,103]
[355399556,1741105816255,-367.53,0.000371,30]
[355399557,1741105816281,-7009.0,0.00038,30]
[355399558,1741105816309,-1634.5,0.000384,30]
[355399559,1741105816335,-30180.3583776,0.000388,30]
[355399560,1741105816364,-5244.99,0.000388,30]
[355399561,1741105816397,-1892.36,0.000389,30]
[355399562,1741105816424,-839.47556547,0.00039,120]
[355399563,1741105816452,-367.53,0.000392,30]
[355399564,1741105816479,-161.63,0.000392,30]
[355399565,1741105816508,-623.62242199,0.000398,60]
[355399566,1741105816538,-152.71101631,0.000399,120]
[355399567,1741105816567,-1634.5,0.000399,30]
[355399568,1741105816598,-8693.34463934,0.0004,120]
[355399569,1741105816631,-226.63570782,0.0004,120]
[355399570,1741105816658,-326.64104239,0.0004,30]
[355399571,1741105816686,-81614.51514202,0.0004,30]
[355399572,1741105816842,-678.80500998,0.0004,120]
[355399573,1741105816876,-47189.89360867,0.0004,120]
[355399574,1741105816908,-10188.47689018,0.0004,120]
[355399575,1741105816938,-1892.36,0.000403,30]
[355399576,1741105816970,-5244.99,0.000403,30]
[355399577,1741105817001,-2400.0,0.00040382,60]
[355399578,1741105817030,-367.53,0.000407,30]
[355399579,1741105817059,-13549.95719169,0.00040724,120]
[355399580,1741105817092,-2400.0,0.0004093,60]
[355399581,1741105817129,-358.0013199,0.00040944,40]
[355399582,1741105817158,-1259.9563191,0.00041,120]
[355399583,1741105817187,-1502.00507457,0.00041,30]
[355399584,1741105817214,-1634.5,0.00041,30]
[355399585,1741105817244,-500.0,0.00041095,120]
[355399586,1741105817273,-500.0,0.00041095,120]
[355399587,1741105817300,-500.0,0.00041095,120]
[355399588,1741105817329,-877.62,0.00041095,120]
[355399589,1741105817357,-500.0,0.00041095,120]
[355399590,1741105817387,-542.23,0.00041095,120]
[355399591,1741105817414,-235.12,0.00041095,120]
[355399592,1741105817442,-239.4,0.00041095,120]
[355399593,1741105817470,-866.1,0.00041095,120]
[355399594,1741105817498,-500.0,0.00041095,120]
[355399595,1741105817526,-534.78,0.00041095,120]
[355399596,1741105817553,-297.71,0.00041095,120]
[355399597,1741105817581,-500.0,0.00041095,120]
[355399598,1741105817608,-500.0,0.00041095,120]
[355399599,1741105817644,-1000.0,0.00041095,88]
[355399600,1741105817671,-561.19,0.00041095,120]
[355399601,1741105817698,-810.98,0.00041095,120]
[355399602,1741105817724,-1169.18,0.00041095,120]
[355399603,1741105817750,-500.0,0.00041095,120]
[355399604,1741105817776,-1459.67,0.00041095,120]
[355399605,1741105817802,-500.0,0.00041095,120]
[355399606,1741105817828,-500.0,0.00041095,120]
[355399607,1741105817855,-500.0,0.00041095,120]
[355399608,1741105817889,-500.0,0.00041095,120]
[355399609,1741105817915,-500.0,0.00041095,120]
[355399610,1741105817942,-701.01,0.00041095,120]
[355399611,1741105817968,-2585.09,0.00041095,120]
[355399612,1741105817994,-500.0,0.00041095,120]
[355399613,1741105818020,-245.43,0.000412,30]
[355399614,1741105818046,-1892.36,0.000412,30]
[355399615,1741105818074,-500.0,0.00041369,120]
[355399616,1741105818103,-877.62,0.00041369,120]
[355399617,1741105818136,-542.23,0.00041369,120]
[355399618,1741105818163,-866.1,0.00041369,120]
[355399619,1741105818191,-560.65,0.00041369,120]
[355399620,1741105818218,-534.78,0.00041369,120]
[355399621,1741105818245,-500.0,0.00041369,120]
[355399622,1741105818272,-561.19,0.00041369,120]
[355399623,1741105818300,-810.98,0.00041369,120]
[355399624,1741105818328,-1169.18,0.00041369,120]
[355399625,1741105818356,-1459.67,0.00041369,120]
[355399626,1741105818386,-500.0,0.00041369,120]
[355399627,1741105818412,-500.0,0.00041369,120]
[355399628,1741105818440,-500.0,0.00041369,120]
[355399629,1741105818469,-701.01,0.00041369,120]
[355399630,1741105818498,-2585.09,0.00041369,120]
[355399631,1741105818525,-500.0,0.00041369,120]
[355399632,1741105818551,-2400.0,0.00041478,60]
[355399633,1741105818579,-5244.99,0.000415,30]
[355399634,1741105818605,-150.0,0.00041642,30]
[355399635,1741105818638,-877.62,0.00041643,120]
[355399636,1741105818666,-542.23,0.00041643,120]
[355399637,1741105818694,-866.1,0.00041643,120]
[355399638,1741105818721,-534.78,0.00041643,120]
[355399639,1741105818749,-500.0,0.00041643,120]
[355399640,1741105818776,-561.19,0.00041643,120]
[355399641,1741105818803,-810.98,0.00041643,120]
[355399642,1741105818830,-1169.18,0.00041643,120]
[355399643,1741105818857,-1459.67,0.00041643,120]
[355399644,1741105818885,-500.0,0.00041643,120]
[355399645,1741105818911,-500.0,0.00041643,120]
[355399646,1741105818940,-500.0,0.00041643,120]
[355399647,1741105818967,-701.01,0.00041643,120]
[355399648,1741105818995,-2585.09,0.00041643,120]
[355399649,1741105819025,-500.0,0.00041643,120]
[355399650,1741105819051,-166.01665656,0.0004189,120]
[355399651,1741105819082,-166.01665656,0.0004189,120]
[355399652,1741105819111,-166.01665656,0.0004189,120]
[355399653,1741105819146,-166.01665656,0.0004189,120]
[355399654,1741105819176,-166.01,0.0004189,120]
[355399655,1741105819206,-161.40508277,0.0004189,120]
[355399656,1741105819234,-161.40508277,0.0004189,120]
[355399657,1741105819265,-161.40508277,0.0004189,120]
[355399658,1741105819295,-161.40508277,0.0004189,120]
[355399659,1741105819324,-161.40508277,0.0004189,120]
[355399660,1741105819352,-161.40508277,0.0004189,120]
[355399661,1741105819385,-161.40508277,0.0004189,120]
[355399662,1741105819411,-161.40508277,0.0004189,120]
[355399663,1741105819439,-161.40508277,0.0004189,120]
[355399664,1741105819467,-161.40508277,0.0004189,120]
[355399665,1741105819495,-877.62,0.00041917,120]
[355399666,1741105819655,-542.23,0.00041917,120]
[355399667,1741105819684,-866.1,0.00041917,120]
[355399668,1741105819711,-534.78,0.00041917,120]
[355399669,1741105819739,-500.0,0.00041917,120]
[355399670,1741105819765,-561.19,0.00041917,120]
[355399671,1741105819791,-810.98,0.00041917,120]
[355399672,1741105819817,-1169.18,0.00041917,120]
[355399673,1741105819843,-1459.67,0.00041917,120]
[355399674,1741105819867,-500.0,0.00041917,120]
[355399675,1741105819896,-500.0,0.00041917,120]
[355399676,1741105819924,-500.0,0.00041917,120]
[355399677,1741105819952,-701.01,0.00041917,120]
[355399678,1741105819981,-2585.09,0.00041917,120]
[355399679,1741105820008,-500.0,0.00041917,120]
[355399680,1741105820036,-246704.26041575,0.00042,120]
[355399681,1741105820061,-367.53,0.00042,30]
[355399682,1741105820091,-161.63,0.00042,30]
[355399683,1741105820123,-2400.0,0.00042026,60]
[355399684,1741105820150,-161.40508277,0.00042185,120]
[355399685,1741105820178,-877.62,0.00042191,120]
[355399686,1741105820205,-542.23,0.00042191,120]
[355399687,1741105820232,-866.1,0.00042191,120]
[355399688,1741105820257,-534.78,0.00042191,120]
[355399689,1741105820285,-500.0,0.00042191,120]
[355399690,1741105820311,-561.19,0.00042191,120]
[355399691,1741105820338,-810.98,0.00042191,120]
[355399692,1741105820366,-1169.18,0.00042191,120]
[355399693,1741105820401,-1459.67,0.00042191,120]
[355399694,1741105820428,-500.0,0.00042191,120]
[355399695,1741105820455,-500.0,0.00042191,120]
[355399696,1741105820480,-500.0,0.00042191,120]
[355399697,1741105820507,-701.01,0.00042191,120]
[355399698,1741105820532,-2585.09,0.00042191,120]
[355399699,1741105820559,-500.0,0.00042191,120]
[355399700,1741105820583,-1634.5,0.000422,30]
[355399701,1741105820608,-1892.36,0.000423,30]
[355399702,1741105820635,-245.43,0.000424,30]
[355399703,1741105820663,-877.62,0.00042465,120]
[355399704,1741105820688,-542.23,0.00042465,120]
[355399705,1741105820714,-151.0,0.00042465,120]
[355399706,1741105820741,-866.1,0.00042465,120]
[355399707,1741105820765,-151.0,0.00042465,120]
[355399708,1741105820790,-534.78,0.00042465,120]
[355399709,1741105820816,-500.0,0.00042465,120]
[355399710,1741105820840,-561.19,0.00042465,120]
[355399711,1741105820865,-810.98,0.00042465,120]
[355399712,1741105820893,-151.0,0.00042465,120]
[355399713,1741105820918,-1169.18,0.00042465,120]
[355399714,1741105820945,-1459.67,0.00042465,120]
[355399715,1741105820971,-500.0,0.00042465,120]
[355399716,1741105820997,-500.0,0.00042465,120]
[355399717,1741105821023,-500.0,0.00042465,120]
[355399718,1741105821050,-701.01,0.00042465,120]
[355399719,1741105821084,-2585.09,0.00042465,120]
[355399720,1741105821110,-500.0,0.00042465,120]
[355399721,1741105821143,-1014.00306287,0.000425,30]
[355399722,1741105821170,-160.04581397,0.00042548,120]
[355399723,1741105821196,-482.201552,0.000426,120]
[355399724,1741105821222,-482.201552,0.000426,120]
[355399725,1741105821249,-616.372589,0.000426,120]
[355399726,1741105821276,-616.372589,0.000426,120]
[355399727,1741105821301,-151.0,0.000427,120]
[355399728,1741105821328,-151.0,0.000427,120]
[355399729,1741105821357,-151.0,0.000427,120]
[355399730,1741105821388,-5244.99,0.000427,30]
[355399731,1741105821417,-877.62,0.00042739,120]
[355399732,1741105821446,-542.23,0.00042739,120]
[355399733,1741105821474,-866.1,0.00042739,120]
[355399734,1741105821500,-534.78,0.00042739,120]
[355399735,1741105821527,-500.0,0.00042739,120]
[355399736,1741105821554,-561.19,0.00042739,120]
[355399737,1741105821581,-810.98,0.00042739,120]
[355399738,1741105821609,-1169.18,0.00042739,120]
[355399739,1741105821642,-1459.67,0.00042739,120]
[355399740,1741105821668,-500.0,0.00042739,120]
[355399741,1741105821695,-500.0,0.00042739,120]
[355399742,1741105821722,-500.0,0.00042739,120]
[355399743,1741105821751,-701.01,0.00042739,120]
[355399744,1741105821779,-2585.09,0.00042739,120]
[355399745,1741105821806,-500.0,0.00042739,120]
[355399746,1741105821832,-161.4,0.000429,120]
[355399747,1741105821859,-482.201552,0.00042903,120]
[355399748,1741105821888,-482.201552,0.00042903,120]
[355399749,1741105821913,-151.0,0.00042903,120]
[355399750,1741105821939,-616.372589,0.00042903,120]
[355399751,1741105821966,-616.372589,0.00042903,120]
[355399752,1741105821991,-151.0,0.00042903,120]
[355399753,1741105822018,-151.0,0.00042903,120]
[355399754,1741105822045,-151.0,0.00042903,120]
[355399755,1741105822073,-151.0,0.00042903,120]
[355399756,1741105822103,-151.0,0.00042903,120]
[355399757,1741105822138,-217473.80600891,0.00043,90]
[355399765,1741105828344,-500.0,0.00041095,120]
[355399766,1741105828376,-500.0,0.00041095,120]
[355399767,1741105828406,-500.0,0.00041095,120]
[355399768,1741105828437,-500.0,0.00041369,120]
[355399769,1741105828465,-500.0,0.00041643,120]
[355399770,1741105828494,-500.0,0.00041917,120]
[355399771,1741105828525,-500.0,0.00042191,120]
[355399772,1741105828555,-500.0,0.00042465,120]
[355399773,1741105828583,-500.0,0.00042739,120]
[355399774,1741105828613,-895500.0,0.00043,90]
[355399899,1741105833624,-150.6298889,0.0002,7]
[355399901,1741105833640,-771.53587076,0.00023,2]
[355399903,1741105833653,-2839.98155828,0.00023,2]
[355399905,1741105833667,-1340.08791318,0.00023,2]
[355399907,1741105833678,-300.0,0.00029746,2]
[355399909,1741105833689,-416.58373988,0.00029747,2]
[355399912,1741105833706,-910.30236845,0.00029747,2]
[355399914,1741105833718,-901.40683957,0.00029747,2]
[355399916,1741105833729,-173.639,0.0003,2]
[355399918,1741105833739,-1999.7,0.0003,2]
[355399920,1741105833749,-160.0,0.00030108,2]
[355399922,1741105833760,-160.0,0.00030108,2]
[355399923,1741105833772,-12.76416043,0.00030108,2]
[355399927,1741105833799,-147.23583957,0.00030108,2]